bitfinex/quotes_BTCUSD_20241205
["timestamp","ask_amount","ask_price","bid_price","bid_amount"]
[1733432611338,5.1e-07,99320.0,99319.0,0.10867605]
[1733432611552,5.1e-07,99320.0,99319.0,0.11567605]
[1733432612208,5.1e-07,99320.0,99319.0,0.01193999]
[1733432612743,5.1e-07,99320.0,99317.0,0.201375]
[1733432613175,5.1e-07,99320.0,99319.0,0.351371]
[1733432614075,0.00100051,99320.0,99319.0,0.351371]
[1733432614600,0.00100051,99320.0,99319.0,0.201371]
[1733432614837,0.12520051,99320.0,99317.0,0.009]
[1733432615106,5.1e-07,99320.0,99319.0,0.003]
[1733432615348,5.1e-07,99320.0,99319.0,0.10267605]
[1733432615560,0.00100051,99320.0,99319.0,0.10867605]
[1733432615765,5.1e-07,99320.0,99310.0,0.37641481]
[1733432615979,5.1e-07,99320.0,99315.0,0.15]
[1733432616210,0.00050051,99320.0,99317.0,0.357374]
[1733432616442,0.00050051,99320.0,99319.0,0.15]
[1733432616663,0.00050051,99320.0,99319.0,0.24967605]
[1733432616908,0.00050051,99320.0,99319.0,0.45104705]
[1733432617136,0.00050051,99320.0,99319.0,1.15104705]
[1733432617349,0.0461,99333.0,99332.0,0.201344]
[1733432618525,0.0461,99333.0,99323.0,0.17502581]
[1733432618526,0.0461,99333.0,99327.0,0.201355]
[1733432618735,0.04627487,99333.0,99327.0,0.201355]
[1733432619001,0.04727487,99333.0,99332.0,0.212344]
[1733432619196,0.04727487,99333.0,99327.0,0.201355]
[1733432619423,0.04727487,99333.0,99332.0,0.201344]
[1733432619884,0.04727487,99333.0,99327.0,0.201355]
[1733432620112,0.04727487,99333.0,99330.0,0.201349]
[1733432620367,0.04727487,99333.0,99332.0,0.201344]
[1733432620574,0.04627487,99333.0,99332.0,0.201344]
[1733432621015,0.04727487,99333.0,99332.0,0.201344]
[1733432621225,0.04627487,99333.0,99332.0,0.201344]
[1733432621671,0.04727487,99333.0,99332.0,0.210344]
[1733432622088,0.04727487,99333.0,99332.0,0.212344]
[1733432623023,0.00117487,99333.0,99332.0,0.212344]
[1733432623460,0.00117487,99333.0,99332.0,0.362344]
[1733432625049,0.00117487,99333.0,99332.0,0.360344]
[1733432625288,0.00017487,99333.0,99332.0,0.351344]
[1733432625580,0.00017487,99333.0,99332.0,0.358344]
[1733432625804,0.00117487,99333.0,99332.0,0.358344]
[1733432626629,0.00117487,99333.0,99332.0,0.353344]
[1733432627093,0.00117487,99333.0,99332.0,0.357344]
[1733432627298,0.00017487,99333.0,99332.0,0.355344]
[1733432627517,0.00017487,99333.0,99257.0,0.08721065]
[1733432627518,0.1309,99292.0,99257.0,0.08721065]
[1733432627732,0.1309,99292.0,99244.0,0.004031]
[1733432627733,0.0819,99270.0,99244.0,0.004031]
[1733432628000,0.09967605,99269.0,99250.0,0.1166537]
[1733432628205,0.0819,99270.0,99267.0,0.201476]
[1733432628854,0.0819,99270.0,99267.0,0.402952]
[1733432629063,0.0829,99270.0,99267.0,0.40312697]
[1733432629949,0.001,99270.0,99267.0,0.40312697]
[1733432630378,0.0785,99287.0,99282.0,0.201446]
[1733432630634,0.09967605,99286.0,99282.0,0.402892]
[1733432630868,0.09967605,99286.0,99267.0,0.00217497]
[1733432631111,0.14231366,99286.0,99267.0,0.00217497]
[1733432631342,0.001,99270.0,99268.0,0.201474]
[1733432631772,0.001,99270.0,99267.0,0.00017497]
[1733432632215,0.1,99279.0,99267.0,0.00017497]
[1733432632419,0.09967605,99278.0,99267.0,0.00017497]
[1733432632634,0.1,99276.0,99267.0,0.00017497]
[1733432632840,0.09967605,99275.0,99267.0,0.00017497]
[1733432633495,0.09967605,99275.0,99267.0,0.20164997]
[1733432633743,0.09967605,99275.0,99271.0,0.201468]
[1733432633965,0.09967605,99275.0,99271.0,0.402936]
[1733432634199,0.09967605,99274.0,99271.0,0.402936]
[1733432635341,0.09967605,99274.0,99271.0,0.403936]
[1733432635561,0.001,99275.0,99271.0,0.402936]
[1733432636012,0.1,99284.0,99280.0,0.20145]
[1733432636222,0.09967605,99283.0,99280.0,0.20145]
[1733432636655,0.09967605,99283.0,99276.0,0.402915]
[1733432637570,0.09967605,99283.0,99276.0,0.201457]
[1733432637808,0.09967605,99283.0,99280.0,0.201449]
[1733432638270,0.10067605,99283.0,99280.0,0.201449]
[1733432639402,0.09967605,99283.0,99280.0,0.201449]
[1733432639620,0.10167605,99283.0,99280.0,0.201449]
[1733432639823,0.10167605,99283.0,99276.0,0.201457]
[1733432639824,0.10267605,99283.0,99276.0,0.201457]
[1733432640039,0.10267605,99283.0,99267.0,0.00017497]
[1733432640267,0.10267605,99283.0,99275.0,0.201459]
[1733432640492,0.10267605,99283.0,99275.0,0.402919]
[1733432640717,0.10067605,99283.0,99275.0,0.402919]
[1733432640978,0.10067605,99283.0,99280.0,0.0017326]
[1733432641857,0.10067605,99283.0,99280.0,0.2031826]
[1733432642295,0.09967605,99283.0,99280.0,0.2031826]
[1733432642709,0.10067605,99283.0,99280.0,0.2031826]
[1733432643145,0.09967605,99283.0,99280.0,0.2031826]
[1733432643605,0.10167605,99283.0,99280.0,0.2031826]
[1733432644040,0.09967605,99283.0,99280.0,0.0017326]
[1733432644256,0.10067605,99283.0,99280.0,0.0017326]
[1733432645200,0.1,99281.0,99280.0,0.0017326]
[1733432645397,0.19967605,99281.0,99280.0,0.0027326]
[1733432645947,0.19967605,99281.0,99280.0,0.0017326]
[1733432646403,0.19967605,99281.0,99280.0,0.0125776]
[1733432646616,0.20167605,99281.0,99280.0,0.0125776]
[1733432647458,0.002,99281.0,99280.0,0.2140276]
[1733432648571,0.08979038,99332.0,99280.0,0.2140276]
[1733432648572,0.0455,99305.0,99281.0,0.15]
[1733432648814,0.0788,99313.0,99281.0,0.15]
[1733432648815,0.0788,99313.0,99312.0,0.201385]
[1733432649039,0.1,99305.0,99297.0,0.201414]
[1733432649262,0.1,99300.0,99289.0,0.201431]
[1733432649466,0.09967605,99304.0,99290.0,0.17524132]
[1733432649914,0.09967605,99304.0,99299.0,0.20141]
[1733432650162,0.09967605,99304.0,99299.0,0.402821]
[1733432650391,0.09967605,99304.0,99302.0,0.201403]
[1733432651578,0.1,99300.0,99297.0,0.201415]
[1733432651789,0.09967605,99299.0,99297.0,0.201415]
[1733432652024,0.09967605,99299.0,99294.0,0.11675111]
[1733432652025,0.1,99308.0,99294.0,0.11675111]
[1733432652247,0.09967605,99307.0,99294.0,0.11675111]
[1733432652473,0.001,99304.0,99302.0,0.201404]
[1733432652689,0.10067605,99304.0,99302.0,0.201404]
[1733432652924,0.10067605,99304.0,99296.0,0.402834]
[1733432652925,0.09967605,99304.0,99296.0,0.402834]
[1733432653154,0.09967605,99303.0,99297.0,0.003]
[1733432653382,0.09967605,99303.0,99299.0,0.201409]
[1733432654083,0.01996761,99302.0,99297.0,0.003]
[1733432654326,0.1,99291.0,99290.0,0.00017497]
[1733432654568,0.27837605,99291.0,99290.0,0.00017497]
[1733432656333,0.27937605,99291.0,99290.0,0.00017497]
[1733432656567,0.28137605,99291.0,99290.0,0.00017497]
[1733432657490,0.3168412,99291.0,99290.0,0.00017497]
[1733432657752,0.28137605,99291.0,99290.0,0.00017497]
[1733432658842,0.30437605,99291.0,99290.0,0.00017497]
[1733432659075,0.40437605,99291.0,99290.0,0.00017497]
[1733432659930,0.28137605,99291.0,99290.0,0.00017497]
[1733432660159,0.38137605,99291.0,99290.0,0.00017497]
[1733432660372,0.27937605,99291.0,99290.0,0.00017497]
[1733432660630,0.37937605,99291.0,99290.0,0.00017497]
[1733432660845,0.27937605,99291.0,99290.0,0.00017497]
[1733432661057,0.37937605,99291.0,99290.0,0.00017497]
[1733432661481,0.27937605,99291.0,99290.0,0.00017497]
[1733432661688,0.38437605,99291.0,99290.0,0.00017497]
[1733432662097,0.37937605,99291.0,99290.0,0.00017497]
[1733432662311,0.37837605,99291.0,99290.0,0.00017497]
[1733432662512,0.37937605,99291.0,99290.0,0.00017497]
[1733432662929,0.28537605,99291.0,99290.0,0.00117497]
[1733432663104,0.38537605,99291.0,99290.0,0.00117497]
[1733432663308,0.38537605,99291.0,99290.0,0.00017497]
[1733432663309,0.37937605,99291.0,99290.0,0.00017497]
[1733432666150,0.17937605,99291.0,99290.0,0.00017497]
[1733432666363,0.17937605,99291.0,99290.0,0.20160497]
[1733432666946,0.17937605,99291.0,99290.0,0.00017497]
[1733432667575,0.17837605,99291.0,99290.0,0.00017497]
[1733432667818,0.17837605,99291.0,99290.0,0.00317497]
[1733432667981,0.27837605,99291.0,99290.0,0.00317497]
[1733432668543,0.27937605,99291.0,99290.0,0.00317497]
[1733432668756,0.17937605,99291.0,99290.0,0.00317497]
[1733432668958,0.17837605,99291.0,99290.0,0.00317497]
[1733432669615,0.17937605,99291.0,99290.0,0.00317497]
[1733432669827,0.17937605,99291.0,99290.0,0.00017497]
[1733432670243,0.17937605,99291.0,99290.0,0.00117497]
[1733432670499,0.001,99291.0,99290.0,0.00017497]
[1733432670714,0.0008664,99300.0,99299.0,0.201411]
[1733432672426,0.0008664,99300.0,99299.0,0.204411]
[1733432672957,0.0018664,99300.0,99299.0,0.212411]
[1733432675403,0.0018664,99300.0,99299.0,0.22480315]
[1733432679518,0.0018664,99300.0,99299.0,0.25529971]
[1733432679742,0.0018664,99300.0,99299.0,0.22480315]
[1733432679961,0.0008664,99300.0,99299.0,0.23700866]
[1733432680187,0.0008664,99300.0,99299.0,0.24600866]
[1733432680188,0.0018664,99300.0,99299.0,0.24600866]
[1733432680669,0.0018664,99300.0,99299.0,0.24300866]
[1733432680872,0.0018664,99300.0,99299.0,0.24800866]
[1733432681083,0.0008664,99300.0,99299.0,0.23900866]
[1733432681540,0.0018664,99300.0,99299.0,0.22280315]
[1733432681744,0.0018664,99300.0,99299.0,0.22680315]
[1733432682173,0.20154245,99300.0,99299.0,0.02539215]
[1733432682380,0.2291967,99300.0,99299.0,0.02539215]
[1733432682604,0.20154245,99300.0,99299.0,0.02539215]
[1733432683282,0.20054245,99300.0,99299.0,0.01639215]
[1733432683464,0.10054245,99300.0,99299.0,0.01639215]
[1733432683728,0.0008664,99300.0,99299.0,0.21380315]
[1733432683905,0.0008664,99300.0,99299.0,0.21480315]
[1733432684347,0.0008664,99300.0,99299.0,0.21380315]
[1733432685443,0.0008664,99300.0,99299.0,0.36380315]
[1733432685652,0.00072555,99310.0,99309.0,0.201391]
[1733432687436,0.00072555,99310.0,99309.0,0.207391]
[1733432688032,0.00072555,99310.0,99309.0,0.209391]
[1733432689081,0.00072555,99310.0,99309.0,0.20770672]
[1733432691288,0.00072555,99310.0,99309.0,0.21980457]
[1733432696686,0.00072555,99310.0,99309.0,0.21780457]
[1733432697029,0.00072555,99310.0,99309.0,0.22080457]
[1733432697492,0.00072555,99310.0,99309.0,0.21780457]
[1733432697694,0.00072555,99310.0,99309.0,0.21980457]
[1733432698145,0.00072555,99310.0,99309.0,0.02009785]
[1733432698832,0.2004016,99310.0,99309.0,0.02009785]
[1733432699943,0.00072555,99310.0,99309.0,0.22148885]
[1733432700181,0.00072555,99310.0,99309.0,0.21548885]
[1733432700418,0.00072555,99310.0,99309.0,0.21648885]
[1733432700650,0.00172555,99310.0,99309.0,0.21648885]
[1733432700866,0.00172555,99310.0,99309.0,0.01509785]
[1733432701102,0.1004016,99310.0,99309.0,0.01509785]
[1733432701329,0.2004016,99310.0,99309.0,0.01209785]
[1733432701560,0.2004016,99310.0,99309.0,0.01509785]
[1733432701795,0.2004016,99310.0,99309.0,0.003]
[1733432702033,0.2004016,99310.0,99309.0,0.002]
[1733432702262,0.2004016,99310.0,99309.0,0.004]
[1733432702783,0.3004016,99310.0,99309.0,0.004]
[1733432703236,0.2004016,99310.0,99309.0,0.004]
[1733432703463,0.1,99304.0,99300.0,0.12875886]
[1733432703704,0.1,99304.0,99301.0,0.201407]
[1733432703935,0.1,99304.0,99300.0,0.12875886]
[1733432704158,0.09967605,99309.0,99306.0,0.201397]
[1733432704334,0.09967605,99309.0,99306.0,0.402794]
[1733432704998,0.09967605,99309.0,99306.0,0.201397]
[1733432705542,0.09967605,99309.0,99300.0,0.201408]
[1733432705744,0.09967605,99309.0,99301.0,0.03062792]
[1733432705989,0.09967605,99309.0,99302.0,0.23203292]
[1733432706218,0.09967605,99309.0,99306.0,0.201395]
[1733432706343,0.09967605,99309.0,99306.0,0.402792]
[1733432706564,0.09967605,99309.0,99306.0,0.406792]
[1733432706782,0.09967605,99309.0,99306.0,0.413792]
[1733432707006,0.09967605,99309.0,99306.0,0.212395]
[1733432707214,0.00072555,99310.0,99308.0,0.201393]
[1733432707423,0.2,99291.0,99282.0,0.08795627]
[1733432707624,0.55487605,99291.0,99265.0,0.08795627]
[1733432707825,0.55487605,99291.0,99250.0,0.11675111]
[1733432707826,0.2,99281.0,99257.0,0.08795627]
[1733432708075,0.2,99281.0,99256.0,0.21342141]
[1733432708076,0.40457605,99281.0,99256.0,0.21342141]
[1733432708360,0.46720653,99281.0,99256.0,0.21342141]
[1733432708824,0.46720653,99281.0,99260.0,0.20149]
[1733432709039,0.1,99267.0,99262.0,0.201486]
[1733432709267,0.1,99272.0,99270.0,0.20147]
[1733432709430,0.09967605,99271.0,99267.0,0.201476]
[1733432709636,0.09967605,99271.0,99263.0,0.201483]
[1733432710529,0.09967605,99271.0,99267.0,0.002]
[1733432710863,0.19967605,99271.0,99267.0,0.002]
[1733432711239,0.1,99270.0,99267.0,0.002]
[1733432711455,0.09967605,99269.0,99262.0,0.201486]
[1733432711918,0.09967605,99269.0,99258.0,0.201494]
[1733432712145,0.1,99259.0,99256.0,0.01192341]
[1733432712343,0.1,99259.0,99210.0,0.11848371]
[1733432712344,0.1,99254.0,99245.0,0.040301]
[1733432712551,0.09967605,99253.0,99250.0,0.201511]
[1733432713414,0.09982267,99253.0,99250.0,0.201511]
[1733432713618,0.00014662,99253.0,99250.0,0.403022]
[1733432714101,0.00014662,99253.0,99250.0,0.410022]
[1733432714547,0.00014662,99253.0,99250.0,0.381879]
[1733432714770,0.00014662,99253.0,99250.0,0.389879]
[1733432715282,0.00014662,99253.0,99250.0,0.389878]
[1733432715962,0.00014662,99253.0,99250.0,0.384878]
[1733432716197,0.00014662,99253.0,99250.0,0.180368]
[1733432716460,0.08414662,99258.0,99250.0,0.188368]
[1733432716696,0.08414662,99262.0,99255.0,0.2015]
[1733432716923,0.09967605,99261.0,99255.0,0.2015]
[1733432717830,0.09967605,99261.0,99250.0,0.00614662]
[1733432718104,0.09967605,99261.0,99259.0,0.201492]
[1733432718713,0.1,99267.0,99250.0,0.00114662]
[1733432718916,0.1,99267.0,99257.0,0.11675111]
[1733432719548,0.1,99268.0,99257.0,0.11675111]
[1733432719999,0.1,99268.0,99264.0,0.402964]
[1733432720660,0.2292,99281.0,99277.0,0.201456]
[1733432720876,0.0778,99300.0,99272.0,0.15]
[1733432721090,0.13134662,99304.0,99297.0,0.201415]
[1733432721296,0.19967605,99303.0,99301.0,0.201407]
[1733432721539,0.1,99301.0,99298.0,0.201412]
[1733432721772,0.1,99300.0,99298.0,0.201412]
[1733432722185,0.1,99299.0,99298.0,0.201412]
[1733432722642,0.1,99299.0,99277.0,0.009]
[1733432722643,0.28382267,99299.0,99280.0,0.11675111]
[1733432722869,0.00017491,99300.0,99277.0,0.009]
[1733432722870,0.08414662,99278.0,99277.0,0.009]
[1733432723099,0.33142267,99278.0,99277.0,0.009]
[1733432723341,0.08414662,99262.0,99257.0,0.201496]
[1733432723577,0.08414662,99262.0,99250.0,0.31999431]
[1733432723578,0.09967605,99261.0,99254.0,0.201501]
[1733432723810,0.09967605,99261.0,99250.0,0.13075466]
[1733432723811,0.08414662,99258.0,99250.0,0.13075466]
[1733432724012,0.09967605,99257.0,99250.0,0.13075466]
[1733432724502,0.12805832,99257.0,99250.0,0.0017332]
[1733432724711,0.08414662,99253.0,99250.0,0.0017332]
[1733432724918,0.09967605,99252.0,99250.0,0.00187982]
[1733432725424,0.09967605,99252.0,99250.0,0.00787982]
[1733432725662,0.1,99255.0,99252.0,0.201506]
[1733432725868,0.19967605,99255.0,99251.0,0.201509]
[1733432727038,0.19967605,99255.0,99251.0,0.001]
[1733432727277,0.0008666,99270.0,99251.0,0.001]
[1733432727520,0.0008666,99270.0,99261.0,0.201486]
[1733432727521,0.1,99266.0,99261.0,0.201486]
[1733432728016,0.09967605,99265.0,99258.0,0.201494]
[1733432728488,0.08414662,99262.0,99256.0,0.201498]
[1733432728718,0.09967605,99261.0,99252.0,0.201507]
[1733432729630,0.1,99266.0,99255.0,0.201499]
[1733432729868,0.1,99266.0,99252.0,0.01233266]
[1733432730100,0.1,99266.0,99258.0,0.201494]
[1733432730819,0.19967605,99265.0,99253.0,0.201505]
[1733432731045,0.09967605,99265.0,99253.0,0.201505]
[1733432731294,0.19967605,99265.0,99256.0,0.004]
[1733432731759,0.19967605,99265.0,99252.0,0.001]
[1733432731985,0.19967605,99265.0,99257.0,0.201497]
[1733432732228,0.19967605,99265.0,99258.0,0.005]
[1733432732454,0.19967605,99265.0,99257.0,0.201497]
[1733432732678,0.19967605,99265.0,99259.0,0.201493]
[1733432733361,0.09967605,99265.0,99259.0,0.201493]
[1733432733651,0.19967605,99265.0,99258.0,0.001]
[1733432733878,0.19967605,99265.0,99257.0,0.201497]
[1733432733879,0.1,99265.0,99257.0,0.201497]
[1733432734380,0.1,99265.0,99259.0,0.001]
[1733432734600,0.1,99265.0,99259.0,0.004]
[1733432734823,0.1,99265.0,99260.0,0.402981]
[1733432735048,0.1,99265.0,99259.0,0.004]
[1733432735291,0.1,99265.0,99263.0,0.201483]
[1733432736188,0.0008666,99270.0,99269.0,0.201472]
[1733432736619,0.0008666,99270.0,99269.0,0.36295661]
[1733432736847,0.1,99298.0,99291.0,0.201427]
[1733432737080,0.09967605,99297.0,99286.0,0.11675111]
[1733432737288,0.09967605,99297.0,99287.0,0.201436]
[1733432737509,0.09967605,99297.0,99286.0,0.1284807]
[1733432737747,0.09967605,99297.0,99286.0,0.11675111]
[1733432738191,0.09967605,99297.0,99287.0,0.201436]
[1733432738439,0.09985096,99297.0,99287.0,0.201436]
[1733432738651,0.09985096,99297.0,99287.0,0.205436]
[1733432739134,0.19985096,99297.0,99287.0,0.205436]
[1733432739595,0.19985096,99297.0,99287.0,0.005]
[1733432739822,0.19985096,99297.0,99287.0,0.206434]
[1733432740044,0.19485096,99297.0,99288.0,0.201434]
[1733432740259,0.10017491,99297.0,99293.0,0.201422]
[1733432740464,0.10017491,99297.0,99293.0,0.402845]
[1733432740465,0.00017491,99297.0,99293.0,0.402845]
[1733432741376,0.00017491,99297.0,99293.0,0.403845]
[1733432741762,0.00017491,99297.0,99293.0,0.402845]
[1733432743180,0.00017491,99297.0,99293.0,0.405845]
[1733432743358,0.00017491,99297.0,99296.0,0.15]
[1733432743571,0.00017491,99297.0,99296.0,0.18069787]
[1733432744206,0.09989926,99317.0,99308.0,0.201392]
[1733432744432,0.09967605,99316.0,99308.0,0.201392]
[1733432744869,0.09967605,99316.0,99307.0,0.11675111]
[1733432745320,0.09967605,99316.0,99308.0,0.201393]
[1733432746471,0.19957531,99316.0,99308.0,0.201393]
[1733432746723,0.19957531,99316.0,99308.0,0.402786]
[1733432746952,0.19957531,99316.0,99308.0,0.406786]
[1733432747178,0.19957531,99316.0,99312.0,0.201385]
[1733432747650,0.09967605,99315.0,99308.0,0.005]
[1733432748118,0.09967605,99315.0,99305.0,0.201399]
[1733432748349,0.09967605,99315.0,99312.0,0.002]
[1733432749715,0.09967605,99315.0,99305.0,0.201399]
[1733432749954,0.09967605,99315.0,99308.0,0.004]
[1733432750201,0.09967605,99315.0,99308.0,0.001]
[1733432750655,0.09967605,99315.0,99305.0,0.201399]
[1733432751135,0.09967605,99315.0,99312.0,0.002]
[1733432751347,0.08414662,99313.0,99312.0,0.002]
[1733432751573,0.18382267,99313.0,99308.0,0.001]
[1733432751797,0.09967605,99312.0,99308.0,0.001]
[1733432752731,0.09967605,99312.0,99308.0,0.005]
[1733432753182,0.09967605,99312.0,99304.0,0.201401]
[1733432753406,0.08414662,99310.0,99308.0,0.004]
[1733432753667,0.09989926,99316.0,99315.0,0.201379]
[1733432754374,0.08414662,99322.0,99318.0,0.201371]
[1733432754602,0.18382267,99321.0,99318.0,0.201371]
[1733432755044,0.09967605,99321.0,99318.0,0.201371]
[1733432755270,0.09967605,99321.0,99315.0,0.201379]
[1733432755271,0.09989926,99317.0,99315.0,0.201379]
[1733432755493,0.09967605,99323.0,99315.0,0.201379]
[1733432755715,0.09967605,99323.0,99315.0,0.402758]
[1733432755935,0.09989926,99316.0,99315.0,0.201379]
[1733432756158,0.09989926,99317.0,99315.0,0.202379]
[1733432756393,0.09989926,99321.0,99315.0,0.202379]
[1733432756862,0.09489926,99319.0,99315.0,0.201379]
[1733432757076,0.09489926,99321.0,99315.0,0.201379]
[1733432757292,0.09589926,99321.0,99315.0,0.202379]
[1733432757506,0.09489926,99316.0,99315.0,0.201379]
[1733432757747,0.09489926,99321.0,99315.0,0.205379]
[1733432757958,0.09489926,99321.0,99315.0,0.21697663]
[1733432758160,0.09489926,99321.0,99315.0,0.21797663]
[1733432758579,0.09489926,99317.0,99315.0,0.21697663]
[1733432759220,0.09489926,99317.0,99315.0,0.21297663]
[1733432759429,0.09489926,99317.0,99315.0,0.01559763]
[1733432759635,0.09489926,99317.0,99315.0,0.01159763]
[1733432759853,0.0008661,99320.0,99316.0,0.201377]
[1733432761145,0.09489926,99317.0,99316.0,0.204377]
[1733432761581,0.0008661,99320.0,99316.0,0.205377]
[1733432761808,0.09489926,99317.0,99316.0,0.004]
[1733432762467,0.09489926,99317.0,99316.0,0.001]
[1733432762675,0.09489926,99317.0,99316.0,0.004]
[1733432762898,0.09489926,99317.0,99316.0,0.003]
[1733432763141,0.09489926,99317.0,99316.0,0.004]
[1733432763576,0.09489926,99317.0,99316.0,0.00385866]
[1733432763784,0.27872193,99317.0,99316.0,0.00385866]
[1733432764691,0.27872193,99317.0,99316.0,0.00285866]
[1733432765374,0.27872193,99317.0,99312.0,0.01185418]
[1733432765585,0.09967605,99316.0,99312.0,0.01185418]
[1733432765816,0.09967605,99316.0,99307.0,0.201394]
[1733432766922,0.09967605,99316.0,99312.0,0.003]
[1733432767130,0.09967605,99316.0,99307.0,0.201394]
[1733432767550,0.09967605,99316.0,99307.0,0.206394]
[1733432767766,0.09967605,99316.0,99307.0,0.207394]
[1733432768434,0.09967605,99316.0,99307.0,0.2191724]
[1733432769377,0.09967605,99316.0,99307.0,0.2141724]
[1733432769582,0.09967605,99316.0,99312.0,0.003]
[1733432770017,0.09967605,99316.0,99307.0,0.2141724]
[1733432770240,0.09967605,99316.0,99313.0,0.040279]
[1733432771299,0.22225629,99300.0,99296.0,0.00017491]
[1733432771767,0.22225629,99300.0,99297.0,0.040278]
[1733432772223,0.22225629,99300.0,99298.0,0.15]
[1733432773333,0.22225629,99300.0,99299.0,0.351411]
[1733432774437,0.22225629,99300.0,99299.0,0.38510659]
[1733432775498,0.22225629,99300.0,99299.0,0.50063602]
[1733432775713,0.22225629,99300.0,99299.0,0.58393676]
[1733432775714,0.02694471,99300.0,99299.0,0.58393676]
[1733432775926,0.00381447,99300.0,99299.0,0.58393676]
[1733432776169,0.00381447,99300.0,99299.0,0.59193676]
[1733432776381,0.0008661,99320.0,99319.0,0.36722438]
[1733432776608,0.0008661,99320.0,99319.0,0.46690043]
[1733432777482,0.0008661,99320.0,99319.0,0.49759602]
[1733432777717,0.0018661,99320.0,99319.0,0.50559602]
[1733432779013,0.0008661,99320.0,99319.0,0.50659602]
[1733432779227,0.0008661,99320.0,99319.0,0.51359602]
[1733432779886,0.0008661,99320.0,99319.0,0.59179602]
[1733432780552,0.0792973,99355.0,99324.0,0.01585338]
[1733432780778,0.0792973,99355.0,99345.0,0.11675111]
[1733432782115,0.00058316,99355.0,99347.0,0.201313]
[1733432782773,0.00058316,99355.0,99351.0,0.201305]
[1733432783152,0.00058316,99355.0,99351.0,0.40261]
[1733432783986,0.00058316,99355.0,99351.0,0.40561]
[1733432785297,0.00058316,99355.0,99353.0,0.201302]
[1733432785912,0.0008668,99360.0,99359.0,0.20129]
[1733432786121,0.00104163,99360.0,99359.0,0.20129]
[1733432787442,0.00104163,99360.0,99359.0,0.20329]
[1733432789283,0.00104163,99360.0,99359.0,0.20929]
[1733432789497,0.00104163,99360.0,99359.0,0.008]
[1733432790170,0.00104163,99360.0,99357.0,0.402586]
[1733432790374,0.00104163,99360.0,99359.0,0.004]
[1733432790581,0.00104163,99360.0,99359.0,0.005]
[1733432790791,0.00104163,99360.0,99359.0,0.001]
[1733432791014,0.00104163,99360.0,99359.0,0.006]
[1733432791240,0.00104163,99360.0,99359.0,0.005]
[1733432792608,0.00104163,99360.0,99357.0,0.002]
[1733432792822,0.00104163,99360.0,99359.0,0.003]
[1733432793730,0.00104163,99360.0,99357.0,0.002]
[1733432794153,0.00104163,99360.0,99357.0,0.006]
[1733432794993,0.00104163,99360.0,99357.0,0.004]
[1733432795444,0.00104163,99360.0,99357.0,0.201293]
[1733432795878,0.00104163,99360.0,99359.0,0.001]
[1733432796342,0.0008651,99370.0,99369.0,0.20127]
[1733432796557,0.0008651,99370.0,99369.0,0.18819]
[1733432797485,0.0008651,99370.0,99369.0,0.33819]
[1733432797698,0.0008651,99370.0,99314.0,0.21938017]
[1733432797699,0.1,99318.0,99314.0,0.21938017]
[1733432797918,0.1,99323.0,99289.0,0.38871424]
[1733432797919,0.1,99314.0,99301.0,0.201406]
[1733432798147,0.1,99314.0,99302.0,0.03052692]
[1733432798148,0.09967605,99305.0,99302.0,0.03052692]
[1733432798382,0.09967605,99305.0,99300.0,0.0017326]
[1733432798383,0.09489926,99301.0,99300.0,0.0017326]
[1733432798592,0.19489926,99301.0,99300.0,0.0017326]
[1733432798834,0.29457531,99301.0,99300.0,0.0420156]
[1733432799067,0.36729922,99301.0,99300.0,0.0420156]
[1733432799274,0.36729922,99301.0,99300.0,0.00190743]
[1733432799508,0.31857531,99301.0,99300.0,0.00190743]
[1733432799950,0.31757531,99301.0,99300.0,0.00190743]
[1733432800355,0.31957531,99301.0,99300.0,0.00190743]
[1733432801027,0.09489926,99316.0,99300.0,0.00190743]
[1733432801244,0.09489926,99320.0,99302.0,0.191334]
[1733432801471,0.10681076,99320.0,99301.0,0.15]
[1733432801679,0.0784,99363.0,99311.0,0.15]
[1733432801918,0.09489926,99339.0,99324.0,0.15]
[1733432802150,0.09489926,99339.0,99326.0,0.15]
[1733432802378,0.09489926,99341.0,99326.0,0.15]
[1733432802621,0.0118736,99362.0,99326.0,0.15]
[1733432802622,0.09489926,99358.0,99326.0,0.15]
[1733432802833,0.0118736,99362.0,99320.0,0.17500711]
[1733432802834,0.09489926,99344.0,99329.0,0.15]
[1733432803049,0.09489926,99344.0,99335.0,0.191271]
[1733432803269,0.09489926,99344.0,99329.0,0.341282]
[1733432803488,0.09489926,99344.0,99337.0,0.191266]
[1733432803701,0.09489926,99338.0,99319.0,0.15]
[1733432803931,0.09489926,99338.0,99321.0,0.15]
[1733432804345,0.09489926,99338.0,99324.0,0.007]
[1733432804565,0.09489926,99338.0,99326.0,0.15]
[1733432804782,0.09489926,99338.0,99328.0,0.14821834]
[1733432804995,0.09489926,99348.0,99326.0,0.002]
[1733432805257,0.09489926,99348.0,99327.0,0.09967605]
[1733432805466,0.09489926,99353.0,99340.0,0.191261]
[1733432805709,0.09489926,99354.0,99327.0,0.09967605]
[1733432805921,0.09489926,99354.0,99349.0,0.191244]
[1733432806367,0.09967605,99361.0,99330.0,0.17500711]
[1733432806368,0.09489926,99355.0,99330.0,0.17500711]
[1733432806582,0.09489926,99354.0,99341.0,0.02049824]
[1733432806791,0.09489926,99354.0,99347.0,0.191248]
[1733432807021,0.0008659,99360.0,99347.0,0.191248]
[1733432807434,0.09489926,99354.0,99342.0,0.15]
[1733432807681,0.09489926,99354.0,99341.0,0.191258]
[1733432807682,0.09489926,99354.0,99344.0,0.15]
[1733432808124,0.09489926,99355.0,99353.0,0.191237]
[1733432808334,0.001,99354.0,99353.0,0.191237]
[1733432808753,0.08005507,99380.0,99353.0,0.191237]
[1733432808971,0.10059624,99379.0,99354.0,0.00100632]
[1733432809212,0.10059624,99379.0,99360.0,0.191223]
[1733432809421,0.10025875,99379.0,99368.0,0.191208]
[1733432809643,0.0005827,99379.0,99369.0,0.00100625]
[1733432809841,0.0005827,99379.0,99370.0,0.191204]
[1733432810055,0.0005827,99379.0,99374.0,0.191195]
[1733432810273,0.0005827,99379.0,99376.0,0.382386]
[1733432810497,0.0005827,99379.0,99377.0,0.15100607]
[1733432810632,0.0005827,99379.0,99377.0,0.15]
[1733432811568,0.0005827,99379.0,99378.0,0.351251]
[1733432813012,0.0005827,99379.0,99378.0,0.206251]
[1733432813217,0.0005827,99379.0,99378.0,0.155]